[Event "January 2 Early 2024"]
[Site "https://www.chess.com"]
[Date "2024.01.02"]
[Round "1"]
[White "Tikhonov, Viacheslav"]
[Black "Movahed, Sina"]
[Result "0-1"]
[Board "30"]
[TimeControl "180+1"]
[WhiteFideId "44196407"]
[BlackFideId "42520835"]
[WhiteElo "2511"]
[BlackElo "3012"]
[WhiteTeam "RUS"]
[BlackTeam "IRI"]
[WhiteClock "0:00:04"]
[BlackClock "0:00:34"]

1. e4 {[%clk 0:03:00]}  c5 {[%clk 0:02:59]} 2. Nf3 {[%clk 0:02:59]}  d6 {[%clk 0:03:00]} 3. Nc3 {[%clk 0:02:59]}  Nf6 {[%clk 0:03:00]} 4. e5 {[%clk 0:02:59]}  dxe5 {[%clk 0:03:01]} 5. Nxe5 {[%clk 0:03:00]}  a6 {[%clk 0:03:01]} 6. g3 {[%clk 0:03:01]}  Qd6 {[%clk 0:03:02]} 7. f4 {[%clk 0:02:57]}  Nc6 {[%clk 0:02:57]} 8. Nc4 {[%clk 0:02:57]}  Qc7 {[%clk 0:02:50]} 9. Bg2 {[%clk 0:02:54]}  Bg4 {[%clk 0:02:46]} 10. Bf3 {[%clk 0:02:52]}  Bh3 {[%clk 0:02:40]} 11. Ne3 {[%clk 0:02:49]}  e6 {[%clk 0:02:36]} 12. Bg2 {[%clk 0:02:41]}  Bxg2 {[%clk 0:02:36]} 13. Nxg2 {[%clk 0:02:42]}  c4 {[%clk 0:02:36]} 14. Ne3 {[%clk 0:02:39]}  b5 {[%clk 0:02:28]} 15. a3 {[%clk 0:02:38]}  Bc5 {[%clk 0:02:28]} 16. O-O {[%clk 0:02:38]}  O-O {[%clk 0:02:25]} 17. Qe2 {[%clk 0:02:38]}  Nd4 {[%clk 0:02:25]} 18. Qd1 {[%clk 0:02:35]}  Rad8 {[%clk 0:02:24]} 19. Kg2 {[%clk 0:02:00]}  Qc6+ {[%clk 0:02:24]} 20. Kh3 {[%clk 0:02:00]}  e5 {[%clk 0:01:40]} 21. f5 {[%clk 0:01:53]}  e4 {[%clk 0:01:37]} 22. b3 {[%clk 0:01:23]}  cxb3 {[%clk 0:01:21]} 23. cxb3 {[%clk 0:01:23]}  Nf3 {[%clk 0:01:21]} 24. Qe2 {[%clk 0:01:08]}  Bxe3 {[%clk 0:01:19]} 25. Qxe3 {[%clk 0:01:06]}  Rd3 {[%clk 0:01:19]} 26. Qf4 {[%clk 0:01:04]}  h6 {[%clk 0:01:15]} 27. Ra2 {[%clk 0:00:48]}  Rfd8 {[%clk 0:01:10]} 28. Rf2 {[%clk 0:00:40]}  Ng5+ {[%clk 0:01:09]} 29. Kh4 {[%clk 0:00:39]}  e3 {[%clk 0:01:09]} 30. dxe3 {[%clk 0:00:36]}  Rxc3 {[%clk 0:01:09]} 31. Bb2 {[%clk 0:00:34]}  Rcd3 {[%clk 0:01:05]} 32. Bd4 {[%clk 0:00:34]}  Re8 {[%clk 0:00:58]} 33. Rac2 {[%clk 0:00:30]}  Qa8 {[%clk 0:00:48]} 34. Be5 {[%clk 0:00:30]}  Rd5 {[%clk 0:00:47]} 35. Bxf6 {[%clk 0:00:24]}  gxf6 {[%clk 0:00:48]} 36. Kh5 {[%clk 0:00:24]}  Kg7 {[%clk 0:00:43]} 37. Rc7 {[%clk 0:00:22]}  Re4 {[%clk 0:00:41]} 38. Rxf7+ {[%clk 0:00:14]}  Kxf7 {[%clk 0:00:40]} 39. Qc7+ {[%clk 0:00:14]}  Re7 {[%clk 0:00:41]} 40. Qc3 {[%clk 0:00:13]}  Kg7 {[%clk 0:00:39]} 41. Rf4 {[%clk 0:00:10]}  Rde5 {[%clk 0:00:38]} 42. Qb4 {[%clk 0:00:05]}  Rxe3 {[%clk 0:00:37]} 43. Qd6 {[%clk 0:00:05]}  Re2 {[%clk 0:00:33]} 44. h4 {[%clk 0:00:04]}  Qe8+ {[%clk 0:00:33]} 45. Kg4 {[%clk 0:00:04]}  h5# {[%clk 0:00:34]} 0-1

[Event "January 2 Early 2024"]
[Site "https://www.chess.com"]
[Date "2024.01.02"]
[Round "1"]
[White "Bold, Andre"]
[Black "Le, Tuan Minh"]
[Result "0-1"]
[Board "32"]
[TimeControl "180+1"]
[WhiteFideId "16208471"]
[BlackFideId "12401153"]
[WhiteElo "2508"]
[BlackElo "3010"]
[WhiteTeam "GER"]
[BlackTeam "VIE"]
[WhiteClock "0:00:01"]
[BlackClock "0:00:08"]

1. d4 {[%clk 0:03:00]}  d5 {[%clk 0:02:59]} 2. Nf3 {[%clk 0:03:01]}  Nf6 {[%clk 0:02:59]} 3. c3 {[%clk 0:03:01]}  Bf5 {[%clk 0:02:53]} 4. Bf4 {[%clk 0:03:01]}  e6 {[%clk 0:02:51]} 5. e3 {[%clk 0:03:01]}  Bd6 {[%clk 0:02:49]} 6. Qb3 {[%clk 0:03:00]}  Qc8 {[%clk 0:02:47]} 7. Nbd2 {[%clk 0:02:58]}  O-O {[%clk 0:02:47]} 8. Be2 {[%clk 0:02:55]}  Nbd7 {[%clk 0:02:47]} 9. O-O {[%clk 0:02:53]}  Bxf4 {[%clk 0:02:47]} 10. exf4 {[%clk 0:02:53]}  c5 {[%clk 0:02:48]} 11. c4 {[%clk 0:02:39]}  Qc7 {[%clk 0:02:27]} 12. g3 {[%clk 0:02:30]}  b6 {[%clk 0:02:20]} 13. Rac1 {[%clk 0:02:29]}  Rfd8 {[%clk 0:02:18]} 14. Ne5 {[%clk 0:02:20]}  cxd4 {[%clk 0:02:08]} 15. cxd5 {[%clk 0:02:17]}  Nc5 {[%clk 0:02:06]} 16. Qd1 {[%clk 0:01:53]}  Nxd5 {[%clk 0:02:04]} 17. Nb3 {[%clk 0:01:34]}  f6 {[%clk 0:02:02]} 18. Nd3 {[%clk 0:01:30]}  Qe7 {[%clk 0:00:47]} 19. Ndxc5 {[%clk 0:01:27]}  bxc5 {[%clk 0:00:47]} 20. Rxc5 {[%clk 0:01:26]}  d3 {[%clk 0:00:27]} 21. Bf3 {[%clk 0:01:19]}  Rab8 {[%clk 0:00:27]} 22. Rc4 {[%clk 0:01:04]}  Nb6 {[%clk 0:00:22]} 23. Rc1 {[%clk 0:00:53]}  Rd7 {[%clk 0:00:18]} 24. Qd2 {[%clk 0:00:52]}  Rbd8 {[%clk 0:00:18]} 25. Rfd1 {[%clk 0:00:45]}  h6 {[%clk 0:00:17]} 26. Nc5 {[%clk 0:00:44]}  Rd4 {[%clk 0:00:16]} 27. b3 {[%clk 0:00:38]}  e5 {[%clk 0:00:14]} 28. fxe5 {[%clk 0:00:36]}  fxe5 {[%clk 0:00:14]} 29. Qe3 {[%clk 0:00:31]}  Nd5 {[%clk 0:00:13]} 30. Bxd5+ {[%clk 0:00:31]}  R8xd5 {[%clk 0:00:14]} 31. Na4 {[%clk 0:00:25]}  d2 {[%clk 0:00:14]} 32. Rc3 {[%clk 0:00:24]}  Bg4 {[%clk 0:00:14]} 33. f3 {[%clk 0:00:24]}  Bf5 {[%clk 0:00:13]} 34. Nb2 {[%clk 0:00:24]}  Kh7 {[%clk 0:00:12]} 35. Nc4 {[%clk 0:00:21]}  Bg6 {[%clk 0:00:13]} 36. Kf2 {[%clk 0:00:16]}  Qb4 {[%clk 0:00:10]} 37. Kg1 {[%clk 0:00:10]}  e4 {[%clk 0:00:09]} 38. f4 {[%clk 0:00:10]}  Rd3 {[%clk 0:00:09]} 39. Rxd3 {[%clk 0:00:10]}  Rxd3 {[%clk 0:00:10]} 40. Qxa7 {[%clk 0:00:08]}  e3 {[%clk 0:00:08]} 41. Nxe3 {[%clk 0:00:08]}  Qe4 {[%clk 0:00:09]} 42. Kf2 {[%clk 0:00:08]}  Bh5 {[%clk 0:00:08]} 43. g4 {[%clk 0:00:08]}  Qxf4+ {[%clk 0:00:09]} 44. Ke2 {[%clk 0:00:08]}  Bg6 {[%clk 0:00:05]} 45. Qb6 {[%clk 0:00:02]}  Qxh2+ {[%clk 0:00:05]} 46. Kf3 {[%clk 0:00:02]}  Qh3+ {[%clk 0:00:06]} 47. Kf2 {[%clk 0:00:02]}  Be4 {[%clk 0:00:06]} 48. Qe6 {[%clk 0:00:01]}  Qf3+ {[%clk 0:00:07]} 49. Kg1 {[%clk 0:00:01]}  Qxe3+ {[%clk 0:00:08]} 50. Kh2 {[%clk 0:00:01]}  Qg3# {[%clk 0:00:08]} 0-1

[Event "January 2 Early 2024"]
[Site "https://www.chess.com"]
[Date "2024.01.02"]
[Round "1"]
[White "Pap, Gyula"]
[Black "Pinero Rodriguez, Carlos Jose"]
[Result "1-0"]
[Board "35"]
[TimeControl "180+1"]
[WhiteFideId "725323"]
[BlackFideId "3901726"]
[WhiteElo "3000"]
[BlackElo "2505"]
[WhiteTeam "HUN"]
[BlackTeam "VEN"]
[WhiteClock "0:00:03"]
[BlackClock "0:00:02"]

1. e4 {[%clk 0:03:00]}  c5 {[%clk 0:02:50]} 2. Nc3 {[%clk 0:02:54]}  e6 {[%clk 0:02:48]} 3. d4 {[%clk 0:02:52]}  cxd4 {[%clk 0:02:47]} 4. Qxd4 {[%clk 0:02:53]}  Nc6 {[%clk 0:02:47]} 5. Qe3 {[%clk 0:02:53]}  a6 {[%clk 0:02:46]} 6. Nf3 {[%clk 0:02:52]}  Qc7 {[%clk 0:02:46]} 7. Bd2 {[%clk 0:02:46]}  d6 {[%clk 0:02:41]} 8. O-O-O {[%clk 0:02:43]}  Nf6 {[%clk 0:02:40]} 9. Qg5 {[%clk 0:02:24]}  h6 {[%clk 0:02:34]} 10. Qg3 {[%clk 0:02:25]}  Ne5 {[%clk 0:02:08]} 11. Nd4 {[%clk 0:01:34]}  Bd7 {[%clk 0:01:55]} 12. f4 {[%clk 0:01:32]}  Ng6 {[%clk 0:01:55]} 13. Bd3 {[%clk 0:01:27]}  O-O-O {[%clk 0:01:44]} 14. Rhe1 {[%clk 0:01:21]}  Nxf4 {[%clk 0:01:08]} 15. Bxf4 {[%clk 0:01:09]}  e5 {[%clk 0:01:08]} 16. Be3 {[%clk 0:01:05]}  exd4 {[%clk 0:01:07]} 17. Bxd4 {[%clk 0:01:06]}  Kb8 {[%clk 0:00:56]} 18. Kb1 {[%clk 0:01:00]}  Be6 {[%clk 0:00:52]} 19. e5 {[%clk 0:00:55]}  dxe5 {[%clk 0:00:50]} 20. Bxe5 {[%clk 0:00:53]}  Bd6 {[%clk 0:00:50]} 21. Bxd6 {[%clk 0:00:52]}  Rxd6 {[%clk 0:00:48]} 22. Qxg7 {[%clk 0:00:48]}  Rg8 {[%clk 0:00:11]} 23. Qxh6 {[%clk 0:00:48]}  Rxg2 {[%clk 0:00:11]} 24. Re2 {[%clk 0:00:31]}  Rxe2 {[%clk 0:00:10]} 25. Bxe2 {[%clk 0:00:32]}  Rxd1+ {[%clk 0:00:10]} 26. Bxd1 {[%clk 0:00:33]}  Qe5 {[%clk 0:00:06]} 27. Qd2 {[%clk 0:00:29]}  b5 {[%clk 0:00:05]} 28. a3 {[%clk 0:00:24]}  Nd7 {[%clk 0:00:03]} 29. Bf3 {[%clk 0:00:23]}  Nc5 {[%clk 0:00:03]} 30. Qd8+ {[%clk 0:00:20]}  Bc8 {[%clk 0:00:03]} 31. Qb6+ {[%clk 0:00:18]}  Bb7 {[%clk 0:00:04]} 32. Bxb7 {[%clk 0:00:11]}  Nxb7 {[%clk 0:00:04]} 33. Qxa6 {[%clk 0:00:12]}  Qxh2 {[%clk 0:00:03]} 34. Nxb5 {[%clk 0:00:06]}  Qe5 {[%clk 0:00:01]} 35. Qa7+ {[%clk 0:00:05]}  Kc8 {[%clk 0:00:01]} 36. Qa8+ {[%clk 0:00:05]}  Qb8 {[%clk 0:00:02]} 37. Qa6 {[%clk 0:00:05]}  Qe5 {[%clk 0:00:01]} 38. Qc6+ {[%clk 0:00:05]}  Kb8 {[%clk 0:00:02]} 39. c3 {[%clk 0:00:05]}  f5 {[%clk 0:00:02]} 40. a4 {[%clk 0:00:04]}  f4 {[%clk 0:00:02]} 41. Nd4 {[%clk 0:00:04]}  Ka7 {[%clk 0:00:01]} 42. Qf3 {[%clk 0:00:02]}  Kb8 {[%clk 0:00:02]} 43. Nc6+ {[%clk 0:00:03]}  Kc7 {[%clk 0:00:01]} 44. Nxe5 {[%clk 0:00:03]}  Kd6 {[%clk 0:00:02]} 45. Qxb7 {[%clk 0:00:03]} 1-0

[Event "January 2 Early 2024"]
[Site "https://www.chess.com"]
[Date "2024.01.02"]
[Round "1"]
[White "Svane, Rasmus"]
[Black "Srdanovic, Jovana"]
[Result "1-0"]
[Board "37"]
[TimeControl "180+1"]
[WhiteFideId "4657101"]
[BlackFideId "954810"]
[WhiteElo "2990"]
[BlackElo "2502"]
[WhiteTeam "GER"]
[BlackTeam "SRB"]
[WhiteClock "0:00:37"]
[BlackClock "0:01:33"]

1. Nf3 {[%clk 0:02:59]}  d5 {[%clk 0:02:59]} 2. g3 {[%clk 0:02:59]}  Nc6 {[%clk 0:02:59]} 3. d4 {[%clk 0:02:58]}  Bf5 {[%clk 0:02:59]} 4. Bg2 {[%clk 0:02:55]}  Nb4 {[%clk 0:02:58]} 5. Na3 {[%clk 0:02:55]}  e6 {[%clk 0:02:58]} 6. O-O {[%clk 0:02:53]}  Be7 {[%clk 0:02:58]} 7. c3 {[%clk 0:02:53]}  Na6 {[%clk 0:02:58]} 8. Qb3 {[%clk 0:02:48]}  Rb8 {[%clk 0:02:56]} 9. c4 {[%clk 0:02:39]}  Nf6 {[%clk 0:02:54]} 10. cxd5 {[%clk 0:02:38]}  exd5 {[%clk 0:02:54]} 11. Bf4 {[%clk 0:02:36]}  O-O {[%clk 0:02:52]} 12. Nb5 {[%clk 0:02:35]}  Ra8 {[%clk 0:02:47]} 13. Nc3 {[%clk 0:02:32]}  Qc8 {[%clk 0:02:28]} 14. Nxd5 {[%clk 0:02:22]}  Nxd5 {[%clk 0:02:28]} 15. Qxd5 {[%clk 0:02:23]}  Nb4 {[%clk 0:02:28]} 16. Qc4 {[%clk 0:02:16]}  Be6 {[%clk 0:02:27]} 17. Qxc7 {[%clk 0:01:59]}  Qxc7 {[%clk 0:02:27]} 18. Bxc7 {[%clk 0:02:00]}  Rac8 {[%clk 0:02:27]} 19. Ba5 {[%clk 0:01:59]}  b6 {[%clk 0:02:13]} 20. Bxb4 {[%clk 0:01:56]}  Bxb4 {[%clk 0:02:14]} 21. a3 {[%clk 0:01:55]}  Bd6 {[%clk 0:02:13]} 22. Rfc1 {[%clk 0:01:45]}  Rfd8 {[%clk 0:02:11]} 23. e3 {[%clk 0:01:43]}  Kf8 {[%clk 0:02:10]} 24. Ng5 {[%clk 0:01:42]}  Bf5 {[%clk 0:02:08]} 25. Be4 {[%clk 0:01:39]}  Bxe4 {[%clk 0:02:04]} 26. Nxe4 {[%clk 0:01:40]}  Be7 {[%clk 0:02:03]} 27. g4 {[%clk 0:01:36]}  f6 {[%clk 0:02:03]} 28. Kg2 {[%clk 0:01:34]}  Kf7 {[%clk 0:02:02]} 29. Kf3 {[%clk 0:01:33]}  Ke6 {[%clk 0:02:02]} 30. h3 {[%clk 0:01:26]}  g6 {[%clk 0:02:02]} 31. Ng3 {[%clk 0:01:25]}  f5 {[%clk 0:01:59]} 32. gxf5+ {[%clk 0:01:25]}  gxf5 {[%clk 0:02:00]} 33. Ne2 {[%clk 0:01:25]}  Bd6 {[%clk 0:01:57]} 34. Nf4+ {[%clk 0:01:17]}  Bxf4 {[%clk 0:01:57]} 35. Kxf4 {[%clk 0:01:16]}  Rg8 {[%clk 0:01:56]} 36. f3 {[%clk 0:01:12]}  h5 {[%clk 0:01:51]} 37. h4 {[%clk 0:01:12]}  Kd5 {[%clk 0:01:43]} 38. Rxc8 {[%clk 0:01:00]}  Rxc8 {[%clk 0:01:43]} 39. Rg1 {[%clk 0:00:59]}  Rc2 {[%clk 0:01:41]} 40. Rg5 {[%clk 0:00:59]}  Rxb2 {[%clk 0:01:41]} 41. Rxf5+ {[%clk 0:01:00]}  Ke6 {[%clk 0:01:42]} 42. Rxh5 {[%clk 0:00:57]}  Ra2 {[%clk 0:01:42]} 43. Rh6+ {[%clk 0:00:53]}  Kd5 {[%clk 0:01:42]} 44. Rh5+ {[%clk 0:00:49]}  Ke6 {[%clk 0:01:41]} 45. e4 {[%clk 0:00:47]}  Rxa3 {[%clk 0:01:41]} 46. Rh6+ {[%clk 0:00:47]}  Ke7 {[%clk 0:01:41]} 47. h5 {[%clk 0:00:46]}  b5 {[%clk 0:01:41]} 48. Rc6 {[%clk 0:00:43]}  b4 {[%clk 0:01:41]} 49. h6 {[%clk 0:00:43]}  Kf7 {[%clk 0:01:37]} 50. Rc7+ {[%clk 0:00:39]}  Kg8 {[%clk 0:01:34]} 51. d5 {[%clk 0:00:38]}  b3 {[%clk 0:01:34]} 52. Rb7 {[%clk 0:00:38]}  a5 {[%clk 0:01:34]} 53. d6 {[%clk 0:00:38]}  a4 {[%clk 0:01:31]} 54. d7 {[%clk 0:00:37]}  Kh7 {[%clk 0:01:32]} 55. d8=Q+ {[%clk 0:00:37]}  Kxh6 {[%clk 0:01:33]} 56. Qg5# {[%clk 0:00:37]} 1-0

[Event "January 2 Early 2024"]
[Site "https://www.chess.com"]
[Date "2024.01.02"]
[Round "1"]
[White "Kramnik, Vladimir"]
[Black "Lebedev, Artem S."]
[Result "1-0"]
[Board "39"]
[TimeControl "180+1"]
[WhiteFideId "4101588"]
[BlackFideId "34272747"]
[WhiteElo "2985"]
[BlackElo "2500"]
[WhiteTeam "RUS"]
[BlackTeam "RUS"]
[WhiteClock "0:00:26"]
[BlackClock "0:00:03"]

1. e4 {[%clk 0:03:00]}  e5 {[%clk 0:02:59]} 2. Nf3 {[%clk 0:03:00]}  Nc6 {[%clk 0:02:59]} 3. Bc4 {[%clk 0:03:01]}  Bc5 {[%clk 0:02:59]} 4. d3 {[%clk 0:03:00]}  Nf6 {[%clk 0:02:59]} 5. Nc3 {[%clk 0:03:00]}  d6 {[%clk 0:02:58]} 6. Na4 {[%clk 0:03:00]}  Bb6 {[%clk 0:02:56]} 7. c3 {[%clk 0:03:00]}  h6 {[%clk 0:02:54]} 8. h3 {[%clk 0:02:59]}  Qe7 {[%clk 0:02:50]} 9. b4 {[%clk 0:02:56]}  Be6 {[%clk 0:02:47]} 10. Bxe6 {[%clk 0:02:53]}  fxe6 {[%clk 0:02:44]} 11. O-O {[%clk 0:02:51]}  O-O {[%clk 0:02:44]} 12. Re1 {[%clk 0:02:41]}  Nh5 {[%clk 0:02:26]} 13. Nxb6 {[%clk 0:02:37]}  axb6 {[%clk 0:02:26]} 14. b5 {[%clk 0:02:37]}  Nb8 {[%clk 0:02:16]} 15. Nxe5 {[%clk 0:02:28]}  Qf6 {[%clk 0:01:42]} 16. Ng4 {[%clk 0:02:14]}  Qxc3 {[%clk 0:01:41]} 17. Bxh6 {[%clk 0:02:06]}  Nd7 {[%clk 0:01:15]} 18. Rc1 {[%clk 0:02:02]}  Qb2 {[%clk 0:01:07]} 19. Rxc7 {[%clk 0:01:58]}  Ne5 {[%clk 0:00:55]} 20. Bc1 {[%clk 0:01:39]}  Qxa2 {[%clk 0:00:44]} 21. Be3 {[%clk 0:01:28]}  Nf4 {[%clk 0:00:36]} 22. Nxe5 {[%clk 0:01:19]}  dxe5 {[%clk 0:00:36]} 23. Qg4 {[%clk 0:01:13]}  Rf7 {[%clk 0:00:14]} 24. Rxf7 {[%clk 0:01:12]}  Kxf7 {[%clk 0:00:15]} 25. Bxf4 {[%clk 0:01:12]}  exf4 {[%clk 0:00:16]} 26. Qxf4+ {[%clk 0:01:10]}  Kg8 {[%clk 0:00:17]} 27. Qe3 {[%clk 0:01:06]}  Qa5 {[%clk 0:00:14]} 28. Rb1 {[%clk 0:01:00]}  Rc8 {[%clk 0:00:12]} 29. Qd4 {[%clk 0:00:52]}  Qa2 {[%clk 0:00:10]} 30. Rf1 {[%clk 0:00:50]}  Qa5 {[%clk 0:00:08]} 31. Qd7 {[%clk 0:00:48]}  Rc2 {[%clk 0:00:06]} 32. Qxe6+ {[%clk 0:00:48]}  Kh7 {[%clk 0:00:07]} 33. Qf5+ {[%clk 0:00:46]}  Kh8 {[%clk 0:00:07]} 34. Qh5+ {[%clk 0:00:44]}  Kg8 {[%clk 0:00:07]} 35. d4 {[%clk 0:00:43]}  Qd2 {[%clk 0:00:06]} 36. Qd5+ {[%clk 0:00:42]}  Kh7 {[%clk 0:00:05]} 37. Qf5+ {[%clk 0:00:38]}  Kh8 {[%clk 0:00:05]} 38. d5 {[%clk 0:00:37]}  Qd3 {[%clk 0:00:06]} 39. g3 {[%clk 0:00:31]}  Qxb5 {[%clk 0:00:05]} 40. e5 {[%clk 0:00:27]}  Qxd5 {[%clk 0:00:03]} 41. Qxc2 {[%clk 0:00:26]} 1-0

[Event "January 2 Early 2024"]
[Site "https://www.chess.com"]
[Date "2024.01.02"]
[Round "1"]
[White "Vokhidov, Shamsiddin"]
[Black "Bressy, Theo"]
[Result "1-0"]
[Board "41"]
[TimeControl "180+1"]
[WhiteFideId "14204223"]
[BlackFideId "26022842"]
[WhiteElo "2975"]
[BlackElo "2500"]
[WhiteTeam "UZB"]
[BlackTeam "FRA"]
[WhiteClock "0:01:33"]
[BlackClock "0:00:00"]

1. d4 {[%clk 0:03:00]}  d5 {[%clk 0:02:59]} 2. c4 {[%clk 0:03:01]}  c6 {[%clk 0:03:00]} 3. Nf3 {[%clk 0:03:00]}  Nf6 {[%clk 0:03:00]} 4. Nc3 {[%clk 0:03:01]}  dxc4 {[%clk 0:03:00]} 5. a4 {[%clk 0:03:01]}  Bf5 {[%clk 0:03:00]} 6. Nh4 {[%clk 0:03:01]}  Bd7 {[%clk 0:02:59]} 7. e3 {[%clk 0:02:59]}  b5 {[%clk 0:02:47]} 8. Be2 {[%clk 0:02:49]}  e6 {[%clk 0:02:23]} 9. O-O {[%clk 0:02:48]}  Be7 {[%clk 0:02:22]} 10. Nf3 {[%clk 0:02:47]}  O-O {[%clk 0:02:18]} 11. Ne5 {[%clk 0:02:47]}  Be8 {[%clk 0:02:18]} 12. axb5 {[%clk 0:02:44]}  cxb5 {[%clk 0:02:12]} 13. b3 {[%clk 0:02:44]}  b4 {[%clk 0:02:09]} 14. bxc4 {[%clk 0:02:43]}  a5 {[%clk 0:01:39]} 15. Bf3 {[%clk 0:02:42]}  Ra7 {[%clk 0:01:37]} 16. Nb5 {[%clk 0:02:40]}  Bxb5 {[%clk 0:01:31]} 17. cxb5 {[%clk 0:02:41]}  Qb6 {[%clk 0:01:21]} 18. Qe2 {[%clk 0:02:38]}  Nfd7 {[%clk 0:01:14]} 19. Nc6 {[%clk 0:02:36]}  Nxc6 {[%clk 0:01:14]} 20. Bxc6 {[%clk 0:02:34]}  Nf6 {[%clk 0:00:55]} 21. Bd2 {[%clk 0:02:34]}  a4 {[%clk 0:00:53]} 22. Qc4 {[%clk 0:02:33]}  Nd5 {[%clk 0:00:43]} 23. e4 {[%clk 0:02:31]}  Nc7 {[%clk 0:00:39]} 24. Bxb4 {[%clk 0:02:28]}  Bxb4 {[%clk 0:00:39]} 25. Qxb4 {[%clk 0:02:29]}  a3 {[%clk 0:00:25]} 26. d5 {[%clk 0:02:28]}  exd5 {[%clk 0:00:25]} 27. exd5 {[%clk 0:02:28]}  a2 {[%clk 0:00:25]} 28. Rfe1 {[%clk 0:02:25]}  Rd8 {[%clk 0:00:18]} 29. Qe7 {[%clk 0:02:20]}  Ne6 {[%clk 0:00:14]} 30. Qh4 {[%clk 0:02:15]}  Nd4 {[%clk 0:00:14]} 31. Qe4 {[%clk 0:02:05]}  h6 {[%clk 0:00:09]} 32. h3 {[%clk 0:01:56]}  Nb3 {[%clk 0:00:08]} 33. Qc2 {[%clk 0:01:44]}  Nxa1 {[%clk 0:00:03]} 34. Rxa1 {[%clk 0:01:44]}  Qa5 {[%clk 0:00:04]} 35. g3 {[%clk 0:01:35]}  g6 {[%clk 0:00:02]} 36. h4 {[%clk 0:01:34]}  h5 {[%clk 0:00:02]} 37. Qb2 {[%clk 0:01:34]}  Qa4 {[%clk 0:00:01]} 38. b6 {[%clk 0:01:33]}  Ra5 {[%clk 0:00:00]} 39. Bxa4 {[%clk 0:01:33]} 1-0

[Event "January 2 Early 2024"]
[Site "https://www.chess.com"]
[Date "2024.01.02"]
[Round "1"]
[White "Shishkov, Andrei"]
[Black "Bok, Benjamin"]
[Result "0-1"]
[Board "46"]
[TimeControl "180+1"]
[WhiteFideId "4500563"]
[BlackFideId "1017063"]
[WhiteElo "2499"]
[BlackElo "2951"]
[WhiteTeam "EST"]
[BlackTeam "NED"]
[WhiteClock "0:00:03"]
[BlackClock "0:02:15"]

1. d4 {[%clk 0:03:00]}  Nf6 {[%clk 0:02:59]} 2. c4 {[%clk 0:03:01]}  e6 {[%clk 0:03:00]} 3. Nc3 {[%clk 0:03:00]}  Bb4 {[%clk 0:02:59]} 4. Qc2 {[%clk 0:03:01]}  d5 {[%clk 0:02:59]} 5. cxd5 {[%clk 0:03:01]}  exd5 {[%clk 0:03:00]} 6. Bf4 {[%clk 0:03:01]}  O-O {[%clk 0:02:55]} 7. e3 {[%clk 0:03:01]}  c5 {[%clk 0:02:55]} 8. dxc5 {[%clk 0:02:59]}  Nc6 {[%clk 0:02:55]} 9. Nf3 {[%clk 0:02:59]}  d4 {[%clk 0:02:54]} 10. O-O-O {[%clk 0:02:58]}  Bxc5 {[%clk 0:02:54]} 11. exd4 {[%clk 0:02:56]}  Bd6 {[%clk 0:02:54]} 12. Bxd6 {[%clk 0:02:42]}  Qxd6 {[%clk 0:02:55]} 13. a3 {[%clk 0:02:33]}  Be6 {[%clk 0:02:48]} 14. Kb1 {[%clk 0:02:20]}  Na5 {[%clk 0:02:46]} 15. d5 {[%clk 0:01:57]}  Nxd5 {[%clk 0:02:46]} 16. Nxd5 {[%clk 0:01:28]}  Bxd5 {[%clk 0:02:47]} 17. Ng5 {[%clk 0:00:47]}  g6 {[%clk 0:02:47]} 18. Ne4 {[%clk 0:00:46]}  Bxe4 {[%clk 0:02:46]} 19. Rxd6 {[%clk 0:00:45]}  Bxc2+ {[%clk 0:02:46]} 20. Kxc2 {[%clk 0:00:46]}  Rac8+ {[%clk 0:02:47]} 21. Kb1 {[%clk 0:00:44]}  Rfd8 {[%clk 0:02:42]} 22. Rxd8+ {[%clk 0:00:41]}  Rxd8 {[%clk 0:02:43]} 23. Kc2 {[%clk 0:00:33]}  Rc8+ {[%clk 0:02:36]} 24. Kb1 {[%clk 0:00:32]}  Nb3 {[%clk 0:02:36]} 25. Bd3 {[%clk 0:00:24]}  Nd2+ {[%clk 0:02:36]} 26. Ka2 {[%clk 0:00:24]}  Rd8 {[%clk 0:02:37]} 27. Bc2 {[%clk 0:00:20]}  Nc4 {[%clk 0:02:20]} 28. Rd1 {[%clk 0:00:18]}  Re8 {[%clk 0:02:18]} 29. Rd7 {[%clk 0:00:16]}  Re2 {[%clk 0:02:15]} 30. Bb3 {[%clk 0:00:03]}  Rxb2+ {[%clk 0:02:15]} 0-1

[Event "January 2 Early 2024"]
[Site "https://www.chess.com"]
[Date "2024.01.02"]
[Round "1"]
[White "Korpics, Zsolt"]
[Black "Tari, Aryan"]
[Result "0-1"]
[Board "48"]
[TimeControl "180+1"]
[WhiteFideId "705241"]
[BlackFideId "1510045"]
[WhiteElo "2496"]
[BlackElo "2948"]
[WhiteTeam "HUN"]
[BlackTeam "NOR"]
[WhiteClock "0:00:00"]
[BlackClock "0:00:57"]

1. e4 {[%clk 0:02:57]}  c6 {[%clk 0:02:48]} 2. Nf3 {[%clk 0:02:57]}  d5 {[%clk 0:02:45]} 3. Nc3 {[%clk 0:02:57]}  dxe4 {[%clk 0:02:43]} 4. Nxe4 {[%clk 0:02:58]}  Nf6 {[%clk 0:02:43]} 5. Qe2 {[%clk 0:02:59]}  Nxe4 {[%clk 0:02:40]} 6. Qxe4 {[%clk 0:02:59]}  Nd7 {[%clk 0:02:40]} 7. Bc4 {[%clk 0:02:58]}  Nf6 {[%clk 0:02:40]} 8. Ne5 {[%clk 0:02:58]}  e6 {[%clk 0:02:40]} 9. Qf4 {[%clk 0:02:37]}  Bd6 {[%clk 0:02:20]} 10. d4 {[%clk 0:02:32]}  O-O {[%clk 0:02:14]} 11. Qh4 {[%clk 0:01:39]}  Bxe5 {[%clk 0:01:59]} 12. dxe5 {[%clk 0:01:37]}  Qa5+ {[%clk 0:01:59]} 13. c3 {[%clk 0:01:30]}  Qxe5+ {[%clk 0:01:58]} 14. Be3 {[%clk 0:01:30]}  Nd5 {[%clk 0:01:53]} 15. Bxd5 {[%clk 0:01:27]}  cxd5 {[%clk 0:01:39]} 16. O-O {[%clk 0:01:26]}  Qf6 {[%clk 0:01:37]} 17. Qg3 {[%clk 0:01:15]}  Qg6 {[%clk 0:01:31]} 18. Qxg6 {[%clk 0:01:07]}  hxg6 {[%clk 0:01:31]} 19. f4 {[%clk 0:01:06]}  Bd7 {[%clk 0:01:29]} 20. Bd4 {[%clk 0:01:01]}  f6 {[%clk 0:01:27]} 21. Rfe1 {[%clk 0:01:00]}  Kf7 {[%clk 0:01:27]} 22. Re2 {[%clk 0:00:55]}  a5 {[%clk 0:01:26]} 23. a3 {[%clk 0:00:51]}  b5 {[%clk 0:01:21]} 24. Rae1 {[%clk 0:00:47]}  Rfc8 {[%clk 0:01:19]} 25. b4 {[%clk 0:00:42]}  axb4 {[%clk 0:01:18]} 26. axb4 {[%clk 0:00:42]}  Ra3 {[%clk 0:01:18]} 27. Re3 {[%clk 0:00:40]}  Rca8 {[%clk 0:01:16]} 28. h3 {[%clk 0:00:35]}  Ra2 {[%clk 0:01:16]} 29. R3e2 {[%clk 0:00:34]}  Rxe2 {[%clk 0:01:12]} 30. Rxe2 {[%clk 0:00:34]}  g5 {[%clk 0:01:12]} 31. fxg5 {[%clk 0:00:30]}  e5 {[%clk 0:01:13]} 32. Bc5 {[%clk 0:00:28]}  Bf5 {[%clk 0:01:12]} 33. Rf2 {[%clk 0:00:26]}  Be4 {[%clk 0:01:12]} 34. gxf6 {[%clk 0:00:22]}  gxf6 {[%clk 0:01:13]} 35. Re2 {[%clk 0:00:07]}  Ke6 {[%clk 0:01:12]} 36. Re3 {[%clk 0:00:07]}  Rg8 {[%clk 0:01:10]} 37. g3 {[%clk 0:00:07]}  f5 {[%clk 0:01:10]} 38. Kh2 {[%clk 0:00:07]}  Ra8 {[%clk 0:01:09]} 39. Re2 {[%clk 0:00:06]}  Ra1 {[%clk 0:01:08]} 40. g4 {[%clk 0:00:05]}  f4 {[%clk 0:01:03]} 41. Bg1 {[%clk 0:00:05]}  Rc1 {[%clk 0:01:02]} 42. Ra2 {[%clk 0:00:04]}  Rxc3 {[%clk 0:01:02]} 43. Ra6+ {[%clk 0:00:04]}  Kf7 {[%clk 0:01:01]} 44. Ra7+ {[%clk 0:00:04]}  Ke8 {[%clk 0:00:59]} 45. Ra8+ {[%clk 0:00:04]}  Kd7 {[%clk 0:01:00]} 46. Ra7+ {[%clk 0:00:04]}  Kc8 {[%clk 0:01:00]} 47. Ra8+ {[%clk 0:00:04]}  Kb7 {[%clk 0:01:01]} 48. Ra2 {[%clk 0:00:04]}  d4 {[%clk 0:00:57]} 49. Rd2 {[%clk 0:00:02]}  d3 {[%clk 0:00:57]} 50. h4 {[%clk 0:00:00]}  Rc2 {[%clk 0:00:57]} 0-1